bitfinex/quotes_ETHUSD_20250415
["timestamp","ask_amount","ask_price","bid_price","bid_amount"]
[1744687852706,6.87183,1634.5,1634.2,3.0]
[1744687852912,12.99026,1634.5,1634.2,3.0]
[1744687854182,6.11857,1634.4,1634.2,3.0]
[1744687857530,6.810594,1634.6,1634.2,3.0]
[1744687857681,1.498194,1634.6,1634.3,6.90512]
[1744687857882,7.615924,1634.6,1634.3,6.90512]
[1744687858676,7.615924,1634.6,1634.3,0.7863]
[1744687859225,13.733954,1634.6,1634.3,0.7863]
[1744687860433,7.4915854,1634.5,1634.2,5.63299624]
[1744687860588,13.6100154,1634.5,1634.2,5.63299624]
[1744687860925,7.4915854,1634.5,1634.2,5.63299624]
[1744687861225,7.4915854,1634.5,1634.2,3.0]
[1744687861422,6.11854,1634.4,1634.2,3.0]
[1744687861631,7.4915854,1634.5,1634.2,9.1191]
[1744687864019,0.74915854,1634.4,1634.2,3.0]
[1744687865416,6.11848,1634.4,1634.2,3.0]
[1744687865613,7.4915854,1634.5,1634.2,3.0]
[1744687866088,13.6098754,1634.5,1634.2,3.0]
[1744687866920,13.6098754,1634.5,1634.1,9.56656624]
[1744687867120,13.6098754,1634.5,1633.9,0.8276]
[1744687867121,6.1194,1634.2,1633.9,0.8276]
[1744687867422,6.91922,1634.1,1633.8,2.63299624]
[1744687867715,6.91922,1634.1,1633.9,7.0]
[1744687868292,6.91922,1634.1,1633.9,4.0]
[1744687868609,6.11995,1634.0,1633.9,4.0]
[1744687868983,7.423867,1634.0,1633.9,4.0]
[1744687869821,6.12051,1633.9,1633.6,2.63299624]
[1744687870117,6.12051,1633.9,1633.7,4.0]
[1744687870824,6.12051,1633.9,1633.6,8.75438624]
[1744687871297,1.303917,1634.0,1633.6,2.63299624]
[1744687871508,6.1192,1634.2,1633.8,9.57760624]
[1744687871841,13.39552,1634.2,1633.8,9.57760624]
[1744687871995,7.27602,1634.2,1633.8,9.57760624]
[1744687872189,6.11978,1634.1,1633.8,3.45709624]
[1744687872393,12.24034,1634.0,1633.6,10.13593624]
[1744687872613,12.24034,1634.0,1633.7,4.0]
[1744687872818,6.12033,1633.9,1633.7,4.0]
[1744687873995,1.299304,1634.0,1633.7,4.0]
[1744687874194,1.15682,1634.2,1633.9,6.12017]
[1744687874790,1.15682,1634.2,1633.9,12.24031]
[1744687875016,5.449,1634.3,1634.0,8.75284624]
[1744687875217,0.8052,1634.7,1634.2,2.63299624]
[1744687875520,6.11718,1634.8,1634.5,2.63299624]
[1744687875695,12.23443,1634.8,1634.5,2.63299624]
[1744687875897,1.223443,1634.7,1634.5,2.63299624]
[1744687876321,6.92188,1634.9,1634.5,8.75103624]
[1744687876522,13.03869,1634.9,1634.5,8.75103624]
[1744687877398,6.11668,1634.9,1634.5,14.93001944]
[1744687877591,6.11668,1634.9,1634.6,6.11764]
[1744687877797,17.68021,1635.2,1634.8,6.11681]
[1744687877991,1.768021,1635.1,1634.8,6.11681]
[1744687878431,5.449,1635.2,1635.0,6.11607]
[1744687878904,6.11584,1635.1,1634.8,3.46671051]
[1744687879105,6.11584,1635.1,1634.8,3.0]
[1744687879303,6.11584,1635.1,1634.7,9.56619624]
[1744687879304,12.23199,1635.1,1634.7,9.56619624]
[1744687879633,12.23199,1635.1,1634.8,4.0]
[1744687879932,7.883939,1635.1,1634.8,4.0]
[1744687880337,7.883939,1635.1,1634.7,9.56619624]
[1744687881435,14.000029,1635.1,1634.7,9.56619624]
[1744687881652,7.883939,1635.1,1634.7,9.56619624]
[1744687881804,14.000039,1635.1,1634.7,9.56619624]
[1744687881999,6.11622,1635.0,1634.7,3.44889624]
[1744687882315,7.883939,1635.1,1634.7,10.0143009]
[1744687882537,7.883939,1635.1,1634.7,10.07546555]
[1744687882708,7.883939,1635.1,1634.7,10.0143009]
[1744687883307,6.1169,1634.9,1634.5,0.7831]
[1744687883618,6.1169,1634.9,1634.6,4.0]
[1744687884335,7.883999,1635.1,1634.7,6.17813394]
[1744687884634,14.000079,1635.1,1634.7,6.11696]
[1744687885008,6.11623,1635.0,1634.7,6.11696]
[1744687885437,7.5162529,1635.0,1634.6,9.19946119]
[1744687885742,6.11784,1634.6,1634.3,0.7545]
[1744687886043,6.11784,1634.6,1634.4,4.0]
[1744687886241,6.94788,1634.7,1634.4,4.0]
[1744687886605,5.446,1634.8,1634.4,12.75127624]
[1744687886809,17.6787,1635.0,1634.6,6.87975]
[1744687887011,13.5883699,1635.0,1634.7,6.11731]
[1744687887225,11.56223,1635.0,1634.7,6.11731]
[1744687887514,11.56223,1635.0,1634.6,3.39519624]
[1744687887515,6.11658,1634.9,1634.6,3.39519624]
[1744687887820,11.56223,1635.0,1634.6,9.51288624]
[1744687888207,11.56223,1635.0,1634.6,15.63039624]
[1744687888412,6.11623,1635.0,1634.6,15.63039624]
[1744687889038,6.11623,1635.0,1634.6,9.51270624]
[1744687889239,6.11623,1635.0,1634.6,0.7622]
[1744687889240,6.11671,1634.9,1634.6,0.7622]
[1744687889421,6.11658,1634.9,1634.5,3.0]
[1744687889610,6.11708,1634.8,1634.5,3.0]
[1744687890143,6.11708,1634.8,1634.4,9.52672624]
[1744687890543,6.11708,1634.8,1634.5,4.0]
[1744687890745,7.503388,1634.8,1634.5,4.0]
[1744687890942,6.11738,1634.7,1634.5,4.0]
[1744687891146,6.11738,1634.7,1634.4,9.52672624]
[1744687891948,6.89168,1634.8,1634.4,9.58790131]
[1744687892129,6.11708,1634.8,1634.4,9.52672624]
[1744687892630,6.11708,1634.8,1634.5,6.11803]
[1744687894452,12.23431,1634.8,1634.4,9.52672624]
[1744687895826,6.11708,1634.8,1634.4,9.58790126]
[1744687896872,6.11708,1634.8,1634.5,6.11797]
[1744687897157,6.11664,1634.9,1634.5,12.23587]
[1744687897655,12.23344,1634.9,1634.5,6.1179]
[1744687898358,6.11664,1634.9,1634.5,6.1179]
[1744687898965,6.11664,1634.9,1634.5,12.23576]
[1744687899659,5.446,1635.0,1634.7,6.89891]
[1744687900449,5.446,1635.0,1634.7,13.01608]
[1744687900857,5.446,1635.0,1634.8,6.11693]
[1744687902472,0.055,1635.4,1635.2,6.91114]
[1744687902674,0.055,1635.4,1635.3,11.80921939]
[1744687902859,0.055,1635.4,1635.3,12.29807624]
[1744687903170,0.055,1635.4,1635.3,13.15511611]
[1744687903362,0.055,1635.4,1635.3,13.09397624]
[1744687903750,0.055,1635.4,1635.3,17.09397624]
[1744687903950,0.055,1635.4,1635.3,17.54773917]
[1744687904160,0.055,1635.4,1635.3,10.88265917]
[1744687904366,0.055,1635.4,1635.3,7.0]
[1744687905146,0.055,1635.4,1635.3,9.69414316]
[1744687905345,0.055,1635.4,1635.3,15.80922316]
[1744687905578,0.055,1635.4,1635.3,13.92158]
[1744687908175,0.055,1635.4,1635.3,14.47158]
[1744687908349,0.055,1635.4,1635.3,14.91909897]
[1744687909776,0.055,1635.4,1635.3,20.36309897]
[1744687911947,0.005,1635.5,1635.3,19.55659897]
[1744687912066,1e-05,1635.5,1635.4,13.11523092]
[1744687912273,1e-05,1635.5,1635.4,17.05410624]
[1744687913109,0.4000481,1635.8,1635.7,9.66359]
[1744687913252,0.4000481,1635.8,1635.7,22.59330408]
[1744687913450,0.4000481,1635.8,1635.7,22.53218624]
[1744687913451,0.3500481,1635.8,1635.7,22.53218624]
[1744687915688,0.3500481,1635.8,1635.7,17.09018624]
[1744687916404,0.3500481,1635.8,1635.7,14.45719]
[1744687916703,0.3500481,1635.8,1635.7,17.09018624]
[1744687921393,0.3500481,1635.8,1635.7,6.63299624]
[1744687921766,0.3500481,1635.8,1635.7,9.63299624]
[1744687922017,0.3500481,1635.8,1635.7,15.74658624]
[1744687922204,0.3500481,1635.8,1635.7,16.29658624]
[1744687923575,0.3500481,1635.8,1635.7,17.09498624]
[1744687925983,8.1e-06,1635.8,1635.7,19.72798248]
[1744687926178,0.005,1636.0,1635.9,6.66284]
[1744687926406,0.005,1636.0,1635.9,25.18743679]
[1744687926579,0.005,1636.0,1635.9,25.12633248]
[1744687927508,0.005,1636.0,1635.9,22.49333624]
[1744687928097,0.005,1636.0,1635.9,25.12633248]
[1744687928826,0.005,1636.0,1635.9,25.59282846]
[1744687930105,0.005,1636.0,1635.9,22.95983222]
[1744687931130,0.05,1636.4,1636.3,6.11134]
[1744687931303,0.05,1636.4,1636.3,12.29433624]
[1744687931911,0.05,1636.4,1636.3,17.73433624]
[1744687932121,0.05,1636.4,1636.3,21.73433624]
[1744687932830,1e-05,1636.4,1636.3,21.73433624]
[1744687933145,0.55,1637.0,1636.9,9.1091]
[1744687933345,0.55,1637.0,1636.9,11.80318056]
[1744687933516,0.55,1637.0,1636.9,12.35318056]
[1744687933717,0.55,1637.0,1636.8,3.0]
[1744687934029,0.8309,1636.9,1636.7,2.63299624]
[1744687934350,6.94001,1636.9,1636.7,2.63299624]
[1744687934509,0.8227,1636.7,1636.3,12.74429624]
[1744687934710,0.8227,1636.7,1636.6,4.0]
[1744687934908,6.93271,1636.7,1636.6,4.0]
[1744687935314,6.11091,1636.5,1636.1,8.74507624]
[1744687935520,0.8227,1636.4,1636.2,3.0]
[1744687935718,8.238122,1636.4,1636.3,4.0]
[1744687935917,8.232422,1636.4,1636.3,4.0]
[1744687936324,6.11148,1636.3,1636.1,2.63299624]
[1744687936523,8.232422,1636.4,1636.1,2.63299624]
[1744687936914,6.11138,1636.3,1636.0,3.0]
[1744687937110,6.92872,1636.2,1636.1,4.0]
[1744687937556,7.04318268,1636.2,1636.1,4.0]
[1744687938459,6.11279,1636.0,1635.6,8.07199624]
[1744687938665,0.827,1635.8,1635.7,3.0]
[1744687939171,0.827,1635.8,1635.7,4.0]
[1744687939367,6.94021,1635.8,1635.7,4.0]
[1744687939716,0.96437505,1635.8,1635.7,4.0]
[1744687940267,0.55,1637.0,1636.5,0.822]
[1744687940410,0.55,1637.0,1636.9,10.13159393]
[1744687940616,6.10532,1638.0,1637.3,6.10761]
[1744687940925,6.10532,1638.0,1637.2,6.10785]
[1744687940926,5.672,1638.1,1637.2,2.65049393]
[1744687941249,6.10591,1637.8,1637.2,8.75820393]
[1744687941414,6.10591,1637.8,1637.3,6.10761]
[1744687941615,47.702,1638.4,1637.3,9.71868043]
[1744687941616,6.10392,1638.3,1637.3,9.71868043]
[1744687941837,6.10479,1638.1,1637.3,9.71868043]
[1744687942010,6.10521,1638.0,1637.3,9.71868043]
[1744687942209,5.672,1638.2,1637.3,10.80379838]
[1744687942448,6.10482,1638.1,1637.3,10.74273588]
[1744687942951,17.88077,1638.2,1637.3,10.74273588]
[1744687943113,17.88086,1638.2,1637.3,10.80379468]
[1744687943315,0.7582,1638.0,1637.3,10.74273588]
[1744687943516,0.7582,1638.0,1637.3,14.74273588]
[1744687943813,6.86339,1638.0,1637.3,14.74273588]
[1744687944225,56.80584,1638.4,1637.9,0.55]
[1744687944226,6.15378,1638.4,1637.9,0.55]
[1744687944444,6.10451,1638.2,1637.8,2.65049393]
[1744687944644,6.10425,1638.3,1637.6,2.65049393]
[1744687944645,6.1053,1638.0,1637.6,2.65049393]
[1744687944846,6.10575,1637.8,1637.6,2.65049393]
[1744687945032,0.610575,1637.7,1637.4,2.65049393]
[1744687945214,6.716785,1637.7,1637.4,2.65049393]
[1744687945524,0.12109842,1637.6,1637.4,2.65049393]
[1744687946050,0.13440673,1637.5,1637.2,2.65049393]
[1744687946754,6.10783,1637.3,1637.0,2.65049393]
[1744687947053,5.669,1637.2,1636.7,2.65049393]
[1744687947355,6.10928,1636.9,1636.5,8.76089393]
[1744687947527,6.10967,1636.8,1636.5,2.65049393]
[1744687947728,6.720837,1636.7,1636.5,2.65049393]
[1744687948052,6.85515905,1636.7,1636.3,2.65049393]
[1744687948258,12.96532905,1636.7,1636.3,2.65049393]
[1744687948439,6.11045,1636.6,1636.3,2.65049393]
[1744687948626,0.11966818,1636.5,1636.3,2.65049393]
[1744687948839,0.11966818,1636.5,1636.3,8.76149393]
[1744687949021,5.669,1636.8,1636.5,6.11051]
[1744687949222,0.11966818,1636.7,1636.4,6.11097]
[1744687949657,6.2359,1636.8,1636.5,6.11055]
[1744687949959,0.11704036,1636.7,1636.5,0.55]
[1744687950152,0.11704036,1636.7,1636.4,6.11097]
[1744687950553,6.2359,1636.8,1636.4,6.11097]
[1744687950753,0.11899013,1636.6,1636.4,6.11097]
[1744687950953,0.62359,1636.7,1636.4,6.11097]
[1744687951154,0.11899013,1636.5,1636.4,9.11097]
[1744687951356,0.62359,1636.7,1636.4,9.17207149]
[1744687951554,0.11899013,1636.5,1636.4,9.17207149]
[1744687951751,0.62359,1636.7,1636.4,13.1719215]
[1744687951935,0.11899013,1636.5,1636.4,13.66082]
[1744687952138,5.669,1636.8,1636.6,6.1102]
[1744687952462,0.1180577,1636.7,1636.6,12.28130831]
[1744687952778,0.1180577,1636.7,1636.6,15.83130831]
[1744687952982,0.1180577,1636.7,1636.6,18.42915189]
[1744687953138,5.67,1637.1,1636.9,6.10897]
[1744687953328,5.67,1637.1,1636.8,6.10945]
[1744687953329,6.31282,1637.1,1636.8,6.10945]
[1744687954087,11.7774,1637.4,1637.0,6.10873]
[1744687954239,11.7774,1637.4,1637.1,6.10833]
[1744687954240,5.67,1637.4,1637.1,6.10833]
[1744687954651,5.67,1637.4,1637.2,6.10798]
[1744687954852,11.77737,1637.4,1637.1,3.0]
[1744687955054,17.88489,1637.4,1637.1,3.0]
[1744687955267,7.896129,1637.3,1637.1,3.0]
[1744687955445,1.788489,1637.3,1637.1,3.0]
[1744687955645,1.788489,1637.3,1636.8,6.10946]
[1744687955878,6.10802,1637.2,1636.9,4.0]
[1744687956256,6.10836,1637.1,1636.9,4.0]
[1744687956593,12.21704,1637.1,1636.9,4.0]
[1744687956751,6.90103,1637.0,1636.9,4.0]
[1744687957166,12.57103,1637.0,1636.9,4.0]
[1744687957366,14.438969,1637.0,1636.9,4.0]
[1744687957766,6.10945,1636.9,1636.5,3.0]
[1744687957962,6.10972,1636.8,1636.6,4.0]
[1744687958900,6.10985,1636.7,1636.6,4.0]
[1744687959110,6.11045,1636.6,1636.2,6.11138]
[1744687959275,6.11045,1636.6,1636.3,4.0]
[1744687959802,12.22092,1636.6,1636.3,4.0]
[1744687960099,7.331817,1636.7,1636.3,10.1113]
[1744687960299,6.11014,1636.7,1636.3,4.0]
[1744687960605,6.11037,1636.6,1636.3,4.0]
[1744687960811,6.11027,1636.6,1636.3,10.11119]
[1744687961097,0.11915967,1636.5,1636.3,10.1722171]
[1744687961304,0.11915967,1636.5,1636.4,6.11097]
[1744687961503,12.21931,1636.8,1636.4,6.11097]
[1744687961819,9.67e-06,1636.5,1636.4,10.48397]
[1744687962105,0.7573,1637.2,1636.9,6.10883]
[1744687963281,6.86534,1637.2,1636.9,6.10883]
[1744687963781,6.10804,1637.2,1636.9,6.16991437]
[1744687963982,12.21573,1637.3,1636.9,10.16991437]
[1744687964303,13.437303,1637.3,1636.9,10.16991437]
[1744687964497,6.108,1637.2,1636.9,4.06108437]
[1744687964697,12.21625,1637.2,1636.9,4.0]
[1744687964898,6.108,1637.2,1636.9,4.0]
[1744687965475,6.108,1637.2,1636.9,10.1091]
[1744687965881,7.329233,1637.3,1636.9,10.1091]
[1744687966191,13.437093,1637.3,1636.9,10.1091]
[1744687966393,6.10812,1637.2,1636.9,4.0]
[1744687966585,6.8409493,1637.2,1636.9,4.0]
[1744687966910,6.10853,1637.1,1636.9,4.0]
[1744687967614,12.21719,1637.1,1636.9,4.0]
[1744687967815,6.10853,1637.1,1636.9,4.0]
[1744687967988,6.10853,1637.1,1636.9,3.0]
[1744687968188,6.719753,1637.0,1636.7,3.0]
[1744687968382,6.1089,1637.0,1636.8,4.0]
[1744687969214,6.1091,1636.9,1636.8,4.0]
[1744687969403,6.1091,1636.9,1636.7,3.0]
[1744687969902,12.21792,1637.0,1636.7,3.0]
[1744687970097,7.973532,1637.0,1636.7,3.0]
[1744687970307,14.082512,1637.0,1636.7,3.0]
[1744687970495,14.082532,1637.0,1636.7,3.0]
[1744687970929,6.10931,1636.9,1636.7,3.0]
[1744687971110,12.21868,1636.9,1636.7,3.0]
[1744687971316,6.10931,1636.9,1636.7,3.0]
[1744687971817,13.6269322,1636.9,1636.6,3.0]
[1744687972006,7.5175822,1636.9,1636.7,4.0]
[1744687972326,6.10931,1636.9,1636.7,4.0]
[1744687972512,6.10931,1636.9,1636.6,3.0]
[1744687972913,6.10931,1636.9,1636.6,9.1102]
[1744687973313,6.10931,1636.9,1636.6,3.0]
[1744687973526,6.1096,1636.8,1636.6,3.0]
[1744687974125,1.864632,1637.0,1636.6,3.0]
[1744687974325,5.67,1637.1,1636.9,6.10893]
[1744687974507,0.791,1637.3,1637.0,6.10843]
[1744687974710,6.10813,1637.2,1636.9,5.6470201]
[1744687975099,12.21634,1637.2,1636.9,5.6470201]
[1744687975330,12.21633,1637.2,1636.9,5.6470201]
[1744687975929,6.10813,1637.2,1636.9,5.6470201]
[1744687976092,12.21639,1637.2,1636.9,5.6470201]
[1744687976296,12.21635,1637.2,1636.9,5.6470201]
[1744687976507,6.10813,1637.2,1636.9,5.6470201]
[1744687977330,12.21642,1637.2,1636.9,5.6470201]
[1744687977832,6.10837,1637.1,1636.8,6.10926]
[1744687978031,6.10813,1637.2,1636.9,10.40027784]
[1744687978328,12.2164,1637.2,1636.9,4.29129784]
[1744687978533,12.2164,1637.2,1636.9,4.0]
[1744687979130,12.21695,1637.1,1636.9,4.0]
[1744687979929,6.10837,1637.1,1636.9,4.0]
[1744687980522,12.21694,1637.1,1636.9,4.0]
[1744687980725,6.10837,1637.1,1636.9,4.0]
[1744687981435,6.10687,1637.5,1637.2,6.10778]
[1744687981436,0.7635,1637.5,1637.2,6.10778]
[1744687981638,6.10543,1637.9,1637.4,0.55]
[1744687981639,0.7635,1637.8,1637.4,0.55]
[1744687981931,6.10662,1637.6,1637.2,14.8625701]
[1744687982133,6.10662,1637.6,1637.3,3.0]
[1744687982441,7.479823,1637.8,1637.4,0.29102838]
[1744687982607,13.585813,1637.8,1637.4,6.39813838]
[1744687982934,6.10616,1637.7,1637.4,0.29102838]
[1744687983138,12.97526,1637.8,1637.4,6.10709]
[1744687983361,6.92749,1638.3,1637.6,2.6470201]
[1744687983553,12.20986,1638.1,1637.7,6.1061]
[1744687983852,6.714709,1638.2,1637.8,6.16670214]
[1744687984011,0.610389,1638.2,1637.9,6.10536]
[1744687984206,6.15353,1638.4,1638.0,6.10473]
[1744687984458,0.05,1638.4,1637.9,3.7632]
[1744687984639,12.20838,1638.3,1637.9,3.7632]
[1744687984842,0.05,1638.4,1637.8,2.6470201]
[1744687984843,6.10443,1638.2,1637.8,2.6470201]
[1744687985149,6.10468,1638.1,1637.8,2.6470201]
[1744687985347,6.10443,1638.2,1637.8,2.6470201]
[1744687985534,6.10443,1638.2,1637.8,2.70806965]
[1744687985846,6.10443,1638.2,1637.8,8.81373965]
[1744687986010,12.209,1638.2,1637.8,2.70806965]
[1744687986215,6.10469,1638.1,1637.7,3.7831]
[1744687986459,6.10469,1638.1,1637.8,4.0]
[1744687986750,6.10502,1638.0,1637.8,4.0]
[1744687987363,6.10469,1638.1,1637.8,4.0]
[1744687987541,6.10503,1638.0,1637.8,4.0]
[1744687987741,6.10503,1638.0,1637.7,3.7831]
[1744687988261,6.10469,1638.1,1637.7,9.95026255]
[1744687988453,6.90336,1638.2,1637.8,6.10566]
[1744687988654,6.90336,1638.2,1637.8,6.10572]
[1744687988849,6.90336,1638.2,1637.8,6.16676957]
[1744687989055,13.0079,1638.2,1637.8,6.16676957]
[1744687989433,13.0079,1638.2,1637.7,9.88906]
[1744687989434,6.10468,1638.1,1637.7,9.88906]
[1744687989772,6.90336,1638.2,1637.8,10.10572]
[1744687990136,0.05,1638.4,1638.0,6.10484]
[1744687990343,0.05,1638.4,1638.1,3.7679]
[1744687990664,0.05,1638.4,1638.3,9.65388]
[1744687990964,0.4000481,1639.1,1638.8,0.7679]
[1744687991162,0.4000481,1639.1,1638.4,0.55]
[1744687991163,6.5012781,1639.1,1638.9,0.06101457]
[1744687991350,6.10182,1638.9,1638.6,3.77]
[1744687991667,1.2137481,1639.1,1638.7,6.65225]
[1744687991835,0.4000481,1639.1,1638.6,3.77]
[1744687992135,6.1018,1638.9,1638.6,3.77]
[1744687992338,0.4000481,1639.1,1638.7,3.25804177]
[1744687992540,0.4000481,1639.1,1638.8,12.5493201]
[1744687992736,0.4000481,1639.1,1638.9,6.16250865]
[1744687992968,0.4000481,1639.1,1638.9,6.1015]
[1744687993168,0.4000481,1639.1,1638.8,12.5493201]
[1744687993474,0.31841471,1640.2,1639.2,0.55]
[1744687993647,11.52543762,1640.5,1640.3,6.09644]
[1744687993845,1.20754376,1640.4,1640.2,0.06096068]
[1744687994046,0.05,1640.4,1639.9,8.7449301]
[1744687994264,0.05,1640.4,1640.1,6.09702]
[1744687994572,6.09729,1640.1,1639.8,3.8179]
[1744687994735,6.09699,1640.2,1639.8,3.8179]
[1744687994937,6.09793,1639.9,1639.6,3.0]
[1744687995137,0.05,1640.4,1639.7,0.7506]
[1744687995386,6.09495,1640.8,1640.4,2.6470201]
[1744687995549,17.61846762,1641.3,1640.2,0.7506]
[1744687995550,11.52543762,1641.3,1640.2,0.7506]
[1744687995745,6.09565,1640.6,1640.2,0.7506]
[1744687995948,6.218,1641.0,1640.3,3.0]
[1744687996157,6.09551,1640.6,1640.2,3.84784527]
[1744687996370,6.09645,1640.3,1640.0,2.6470201]
[1744687996571,6.09645,1640.3,1639.9,3.7988]
[1744687996872,0.7893,1640.5,1640.0,2.6470201]
[1744687997059,6.09629,1640.4,1640.0,2.6470201]
[1744687997247,0.12824652,1640.3,1640.0,2.6470201]
[1744687997568,1.219218,1640.4,1639.9,0.7988]
[1744687997776,12.19499,1640.1,1639.7,5.6470201]
[1744687998193,6.25744639,1640.0,1639.7,6.09904984]
[1744687998485,6.25744639,1640.0,1639.7,3.09904984]
[1744687998843,6.25744639,1640.0,1639.2,6.10033]
[1744687998844,6.09904,1639.6,1639.3,3.4568201]
[1744687999051,0.15897188,1639.5,1639.3,0.8098]
[1744687999279,6.25845188,1639.5,1639.2,4.46670425]
[1744687999457,0.15897188,1639.5,1639.4,9.52172247]
[1744687999770,6.87639,1640.2,1639.7,3.0]
[1744687999975,6.09709,1640.2,1639.8,0.06097263]
[1744688000171,0.15897188,1640.1,1639.8,6.15903263]
[1744688000941,0.15897188,1640.1,1640.0,6.09756]
[1744688001143,0.15897188,1640.1,1640.0,13.12625436]
[1744688001356,0.4000481,1640.7,1640.3,6.09608]
[1744688001556,1.13105091,1640.7,1640.3,6.09608]
[1744688001756,0.15648805,1640.6,1640.4,6.15701473]
[1744688002177,0.4000481,1640.7,1640.6,0.55]
[1744688002374,8.1e-06,1640.7,1640.6,15.571196]
[1744688002545,8.1e-06,1640.7,1640.6,15.51026247]
[1744688002945,8.1e-06,1640.7,1640.6,22.51026247]
[1744688004075,0.12722732,1641.2,1641.1,9.29340247]
[1744688004254,0.12722732,1641.2,1641.1,16.50710247]
[1744688004671,0.12722732,1641.2,1641.1,13.41363247]
[1744688004870,0.12722732,1641.2,1641.1,19.50710247]
[1744688005067,0.12722732,1641.2,1641.1,23.50710247]
[1744688005267,0.12722732,1641.2,1641.1,17.41363247]
[1744688005468,0.12722732,1641.2,1641.1,23.96659188]
[1744688005655,0.12722732,1641.2,1641.1,24.57631268]
[1744688005858,0.12722732,1641.2,1641.1,21.31665941]
[1744688006147,0.12722732,1641.2,1641.1,20.85717]
[1744688007261,6.09414,1641.0,1640.6,6.09529]
[1744688007560,0.609414,1640.9,1640.7,0.06094793]
[1744688007762,6.09473,1640.8,1640.3,15.19928247]
[1744688007959,6.09499,1640.7,1640.3,15.19928247]
[1744688008300,0.17328338,1640.7,1640.3,12.54942]
[1744688008492,6.09543,1640.6,1640.3,6.453]
[1744688008660,0.17083744,1640.5,1640.3,6.453]
[1744688009006,6.09607,1640.4,1639.9,6.09792]
[1744688009202,6.0966,1640.3,1640.0,4.0]
[1744688009406,0.16349576,1640.3,1640.0,4.0]
[1744688009558,6.09718,1640.1,1640.0,4.0]
[1744688009883,6.09788,1640.0,1639.7,6.452]
[1744688010083,0.609718,1640.1,1639.8,6.09814]
[1744688010303,0.16003411,1640.0,1639.7,12.55065]
[1744688010489,6.09746,1640.1,1639.7,12.55065]
[1744688010691,0.16003411,1640.0,1639.7,12.55065]
[1744688010858,0.16003411,1640.0,1639.7,6.09865]
[1744688011062,6.09809,1639.9,1639.7,0.06097141]
[1744688011588,0.16003411,1639.8,1639.7,0.06097141]
[1744688012099,6.09686,1640.2,1639.7,0.55]
[1744688012309,6.25654955,1640.1,1639.7,6.64846]
[1744688012506,0.15918955,1640.1,1640.0,6.09756]
[1744688012671,13.626943,1640.6,1640.1,6.64709]
[1744688013007,0.15918955,1640.5,1640.3,6.0963]
[1744688013159,0.15918955,1640.5,1640.3,3.55]
[1744688013578,0.15918955,1640.5,1640.3,9.64625]
[1744688013790,0.15918955,1640.5,1640.3,3.55]
[1744688013990,0.15918955,1640.5,1640.3,3.0]
[1744688014292,0.16206065,1640.4,1640.3,3.06095013]
[1744688014487,6.09538,1640.6,1640.3,3.06095013]
[1744688014655,0.16206065,1640.5,1640.3,3.06095013]
[1744688014855,0.78780471,1640.5,1640.1,3.0]
[1744688015083,6.09669,1640.3,1639.9,0.8155]
[1744688015384,6.25954277,1640.2,1639.9,0.55]
[1744688015585,6.25954277,1640.2,1639.9,9.09778]
[1744688015586,0.16248277,1640.2,1639.9,9.09778]
[1744688016092,0.16248277,1640.2,1640.1,9.91698]
[1744688016292,6.09537,1640.6,1640.3,0.55]
[1744688016490,0.14686641,1640.5,1640.1,10.2718]
[1744688016662,0.14686641,1640.5,1640.2,6.09666]
[1744688017600,0.14686641,1640.5,1640.3,6.6461]
[1744688017766,0.14686641,1640.5,1640.4,6.09607]
[1744688018093,6.09399,1641.0,1640.6,6.09528]
[1744688018291,13.3365,1641.1,1640.6,6.09529]
[1744688018596,6.09439,1640.9,1640.5,6.09559]
[1744688018762,6.703829,1640.9,1640.5,12.19115]
[1744688018968,13.33633,1641.1,1640.7,6.09479]
[1744688019363,7.2428,1641.1,1640.8,0.55]
[1744688019699,13.33628,1641.1,1640.8,0.55]
[1744688019900,13.33628,1641.1,1640.6,6.09529]
[1744688020195,6.09385,1641.0,1640.6,12.19037]
[1744688020597,6.09385,1641.0,1640.7,0.2868965]
[1744688020966,12.18794,1641.0,1640.6,6.09508]
[1744688021165,6.09385,1641.0,1640.6,6.09508]
[1744688021381,15.29194373,1641.1,1640.7,6.15587993]
[1744688021582,1.52919437,1641.0,1640.8,0.28720879]
[1744688021800,7.62305437,1641.0,1640.8,0.28720879]
[1744688022096,7.62305437,1641.0,1640.7,0.06093993]
[1744688022097,1.52919437,1641.0,1640.7,6.64486]
[1744688022297,0.12722732,1641.2,1640.9,0.55]
[1744688022516,0.12722732,1641.2,1640.9,6.64405]
[1744688022815,0.12722732,1641.2,1641.0,0.28734025]
[1744688023191,0.14422855,1641.1,1641.0,0.28734025]
[1744688023398,0.14422855,1641.1,1641.0,0.28735628]
[1744688024294,0.14422855,1641.1,1641.0,0.34828504]
[1744688024497,0.14422855,1641.1,1641.0,1.50800584]
[1744688024699,0.05,1641.4,1641.1,9.64347]
[1744688024901,0.4000481,1642.3,1641.7,0.8115]
[1744688025099,6.4890781,1642.3,1641.9,6.09035]
[1744688025308,0.4000481,1642.3,1642.1,6.08971]
[1744688025470,0.4000481,1642.3,1642.2,6.15027864]
[1744688025669,0.4000481,1642.3,1642.0,6.08996]
[1744688025888,0.4000481,1642.3,1641.9,6.64047]
[1744688026086,6.4891981,1642.3,1641.9,3.55]
[1744688026318,7.14311791,1642.3,1641.9,3.55]
[1744688026519,7.14311791,1642.3,1642.0,0.28674852]
[1744688026717,6.08939,1642.2,1642.0,0.28674852]
[1744688027018,6.08976,1642.1,1641.8,3.0]
[1744688027321,0.4000481,1642.3,1642.0,6.08996]
[1744688027676,0.4000481,1642.3,1642.2,6.63939]
[1744688027929,0.4000481,1642.3,1642.2,10.42889]
[1744688028129,0.4000481,1642.3,1642.2,10.71476104]